{"text_format":"3","workbook":"xlsx","n_sheets":4,"sheets":["Wartungsplan","Kostenrechner","MTBF-Berechnung","Anleitung"],"read":"whole","date_system":"1900"}

{"sheet":"Wartungsplan","index":0,"n_rows":19,"n_cols":9,"rows_kept":19,"merged":[[0,0,0,7],[1,0,1,7]]}
["WARTUNGSPLAN - Instandhaltungsübersicht"]
["Gemäß DIN 31051 - Wartung, Inspektion, Instandsetzung, Verbesserung"]
[]
["Inventar-Nr.","Bezeichnung","Standort","Intervall (Tage)","Letzte Wartung","Nächste Wartung","Verantwortlich","Status","Anmerkungen"]
["MA-2025-01","CNC-Fräse B300","Halle A",30,"15.12.2024",{"$f":"E5+D5","v":null},"Hr. Müller",{"$f":"IF(F5<TODAY(),\"⚠️ ÜBERFÄLLIG\",IF(F5<TODAY()+7,\"⏰ Bald fällig\",\"✅ OK\"))","v":null},"Regelmäßige Schmierung"]
["MA-2025-02","Hydraulikpresse HP-500","Halle B",90,"01.11.2024",{"$f":"E6+D6","v":null},"Fr. Schmidt",{"$f":"IF(F6<TODAY(),\"⚠️ ÜBERFÄLLIG\",IF(F6<TODAY()+7,\"⏰ Bald fällig\",\"✅ OK\"))","v":null},"Druckprüfung"]
["MA-2025-03","Förderband FB-200","Logistik",60,"20.12.2024",{"$f":"E7+D7","v":null},"Hr. Weber",{"$f":"IF(F7<TODAY(),\"⚠️ ÜBERFÄLLIG\",IF(F7<TODAY()+7,\"⏰ Bald fällig\",\"✅ OK\"))","v":null},"Bandspannung prüfen"]
["MA-2025-04","Kompressor K-100","Technikraum",180,"15.06.2024",{"$f":"E8+D8","v":null},"Extern: Firma XY",{"$f":"IF(F8<TODAY(),\"⚠️ ÜBERFÄLLIG\",IF(F8<TODAY()+7,\"⏰ Bald fällig\",\"✅ OK\"))","v":null},"Filteraustausch"]
["MA-2025-05","Schweißroboter SR-01","Halle A",30,"10.01.2025",{"$f":"E9+D9","v":null},"Hr. Müller",{"$f":"IF(F9<TODAY(),\"⚠️ ÜBERFÄLLIG\",IF(F9<TODAY()+7,\"⏰ Bald fällig\",\"✅ OK\"))","v":null},"Kalibrierung"]
["MA-2025-06","Drehmaschine DM-400","Halle C",45,"05.12.2024",{"$f":"E10+D10","v":null},"Hr. Bauer",{"$f":"IF(F10<TODAY(),\"⚠️ ÜBERFÄLLIG\",IF(F10<TODAY()+7,\"⏰ Bald fällig\",\"✅ OK\"))","v":null},"Ölwechsel"]
["MA-2025-07","Kran K-50","Außenbereich",365,"01.01.2024",{"$f":"E11+D11","v":null},"TÜV",{"$f":"IF(F11<TODAY(),\"⚠️ ÜBERFÄLLIG\",IF(F11<TODAY()+7,\"⏰ Bald fällig\",\"✅ OK\"))","v":null},"Jährliche Sicherheitsprüfung"]
["MA-2025-08","Klimaanlage KL-01","Büro",90,"15.10.2024",{"$f":"E12+D12","v":null},"Extern: Klima GmbH",{"$f":"IF(F12<TODAY(),\"⚠️ ÜBERFÄLLIG\",IF(F12<TODAY()+7,\"⏰ Bald fällig\",\"✅ OK\"))","v":null},"Filterwechsel"]
[]
[]
["Legende:"]
["🔴 Rot = Überfällig"]
["🟡 Gelb = In den nächsten 7 Tagen fällig"]
["🟢 Grün = OK (mehr als 7 Tage Zeit)"]
["Gelbe Zellen = Eingabefelder (anpassen)"]

{"sheet":"Kostenrechner","index":1,"n_rows":15,"n_cols":2,"rows_kept":15,"merged":[[0,0,0,3],[2,0,2,1],[10,0,10,2]]}
["💰 WARTUNGSKOSTEN-KALKULATOR"]
[]
["Eingabeparameter"]
[]
["Anzahl der Maschinen/Anlagen:",10]
["Dauer pro Wartung (Stunden):",2.5]
["Wartungen pro Jahr (Frequenz):",12]
["Stundensatz Techniker (€):",65]
["Materialkosten pro Wartung (€):",50]
[]
["Berechnungsergebnisse"]
["Arbeitskosten pro Wartung (€):",{"$f":"B6*B8","v":null}]
["Gesamtkosten pro Wartung (€):",{"$f":"B6*B8+B9","v":null}]
["Kosten pro Maschine/Jahr (€):",{"$f":"(B6*B8+B9)*B7","v":null}]
["Geschätzte Jahreskosten gesamt (€):",{"$f":"B5*(B6*B8+B9)*B7","v":null}]

{"sheet":"MTBF-Berechnung","index":2,"n_rows":19,"n_cols":6,"rows_kept":19,"merged":[[0,0,0,5],[2,0,2,5],[3,0,3,5],[12,0,12,2],[18,0,18,5]]}
["📊 MTBF-BERECHNUNG (Mean Time Between Failures)"]
[]
["Die MTBF gibt die mittlere Betriebsdauer zwischen zwei Ausfällen an."]
["Formel: MTBF = Gesamtbetriebszeit / Anzahl der Ausfälle"]
[]
["Nr.","Maschine","Ausfall-Datum","Reparatur beendet","Ausfallzeit (Std)","Betriebszeit bis Ausfall (Std)"]
[1,"CNC-Fräse B300","15.03.2024","16.03.2024",8,720]
[2,"CNC-Fräse B300","10.06.2024","10.06.2024",4,680]
[3,"CNC-Fräse B300","25.09.2024","26.09.2024",12,840]
[4,"CNC-Fräse B300","20.12.2024","20.12.2024",3,700]
[]
[]
["MTBF-Ergebnis"]
["Gesamtbetriebszeit (Std):",{"$f":"SUM(F7:F20)","v":null}]
["Anzahl Ausfälle:",{"$f":"COUNTA(A7:A20)","v":null}]
["MTBF (Stunden):",{"$f":"IF(B15>0,B14/B15,0)","v":null}]
["MTBF (Tage):",{"$f":"B16/24","v":null}]
[]
["⚠️ Hinweis: Das Wartungsintervall sollte kürzer sein als die MTBF!"]

{"sheet":"Anleitung","index":3,"n_rows":24,"n_cols":2,"rows_kept":24,"merged":[[0,0,0,3],[2,0,2,3],[8,0,8,3],[13,0,13,3],[16,0,16,3],[19,0,19,3]]}
["📘 ANLEITUNG - Wartungsplan Excel-Vorlage"]
[]
["Verwendung des Wartungsplans:"]
["1.","Tragen Sie Ihre Maschinen/Anlagen in die Tabelle 'Wartungsplan' ein"]
["2.","Geben Sie das Wartungsintervall in Tagen an (gelbe Zellen)"]
["3.","Erfassen Sie das Datum der letzten Wartung im Format TT.MM.JJJJ"]
["4.","Die nächste Wartung und der Status werden automatisch berechnet"]
[]
["Bedingte Formatierung:"]
["🔴","Rote Zellen zeigen überfällige Wartungen an"]
["🟡","Gelbe Zellen zeigen Wartungen an, die in den nächsten 7 Tagen fällig sind"]
["🟢","Grüne Zellen zeigen, dass noch ausreichend Zeit ist"]
[]
["Kostenrechner:"]
[null,"Nutzen Sie Blatt 'Kostenrechner' um Ihre jährlichen Wartungskosten zu kalkulieren"]
[]
["MTBF-Berechnung:"]
[null,"Erfassen Sie Ausfälle im Blatt 'MTBF-Berechnung' zur Bestimmung optimaler Intervalle"]
[]
["DIN 31051 - Instandhaltung:"]
["•","Wartung: Maßnahmen zur Verzögerung des Abbaus des vorhandenen Abnutzungsvorrats"]
["•","Inspektion: Maßnahmen zur Feststellung und Beurteilung des Ist-Zustandes"]
["•","Instandsetzung: Maßnahmen zur Rückführung in den funktionsfähigen Zustand"]
["•","Verbesserung: Maßnahmen zur Steigerung der Funktionssicherheit"]